{"text_format":"1","workbook":"xlsx","n_sheets":5,"sheets":["INFO","L","V","Contactgegevens","prullenbak"],"not_rendered":{"charts":0,"images":7,"macros":1,"external_links":1,"defined_names":11,"comments":0,"pivot_tables":0},"unopened":[],"bounds":{"document_bytes":16777216,"sheet_cells":100000,"rows_first":2000,"rows_last":500,"rows_between":2000,"halvings":0,"cell_chars":16384,"cell_head_chars":4096},"cells_cut":0,"cells_raw":0,"read":"whole","date_system":"1900"}

{"sheet":"INFO","index":0,"n_rows":104,"n_cols":10,"rows_kept":104,"cut":false,"hidden":false,"merged":[[20,3,20,9],[18,1,18,2],[11,1,11,2],[16,1,16,2],[11,6,11,7],[19,3,19,9],[19,1,19,2],[20,1,20,2],[57,1,57,9],[58,1,58,9],[21,3,21,9],[39,9,40,9],[27,4,27,9],[47,8,51,8],[25,1,27,2],[23,1,23,2],[30,4,30,5],[25,4,25,9],[26,4,26,9],[21,1,21,2],[4,2,4,4],[13,3,13,9],[14,3,14,9],[8,3,8,9],[18,3,18,9],[15,3,15,9],[16,3,16,9],[8,1,8,2],[11,3,11,4],[13,1,13,2],[14,1,14,2],[15,1,15,2],[11,8,11,9],[6,1,6,9],[9,1,9,2],[9,3,9,9]]}
[null,"© EMRIC 2019"]
[]
[]
[]
[null,null,"Sprache | Taal | Language",null,null,null,null,null,{"$f":"V!F92","v":"Versie"},"2019-03-12"]
[]
[null,{"$f":"IF(L!$B$6=\"Deutsch\",\"INFORMATION über einen Vorfall mit grenzüberschreitenden Auswirkungen\",IF(L!$B$6=\"Nederlands\",\"INFORMATIE over een incident met grensoverschrijdende effecten\",IF(L!$B$6=\"Français\",\"INFORMATION sur un accident avec effets transfrontaliers\")))","v":"INFORMATIE over een incident met grensoverschrijdende effecten"}]
[]
[null,{"$f":"IF(L!$B$6=\"Deutsch\",V!B4,IF(L!$B$6=\"Nederlands\",V!B5,IF(L!$B$6=\"Français\",V!B6)))","v":"PROCEDURE:"},null,{"$f":"IF(L!$B$6=\"Deutsch\",V!C6,IF(L!$B$6=\"Nederlands\",V!D6,IF(L!$B$6=\"Français\",V!E6)))","v":"1. Telefonisch contact\n2. Formulier invullen en per mail (of fax) versturen\n3. Kijk verder op LCMS (NL) / ICMS (B)\n    De Duitse meldkamers sturen sitraps aan de buurmeldkamers"}]
[null,{"$f":"V!F98","v":"LET OP!"},null,{"$f":"V!F99","v":"Dit formulier maakt gebruik van macros. Het formulier moet echter zonder macros worden opgeslagen, om te voorkomen dat het bij het versturen per e-mail in de spamfilter terecht komt. \nLet u hierbij alstublieft op de volgende instructies:\n1. Het oorspronkelijke sjabloon dient altijd ingevuld te worden! Bij een ingevuld en opgeslagen formulier werken een aantal functies niet meer correct. Opent u alstublieft het bestand middels dubbelklikken; hierdoor wordt automatisch een kopie van het bestand geopend zonder het originele sjabloon te wijzigen.\n2. Het formulier moet als normaal Excel-bestand zonder macros worden opgeslagen. Bij het opslaan geeft Excel de melding dat het VB-project niet kan worden opgeslagen; klikt u hier alstublieft op “JA”."}]
[]
[null,null,null,{"$f":"IF(L!$B$6=\"Deutsch\",\"Datum:\",IF(L!$B$6=\"Nederlands\",\"Datum:\",IF(L!$B$6=\"Français\",\"Date:\")))","v":"Datum:"},null,"dd/mm/jjjj",{"$f":"IF(L!$B$6=\"Deutsch\",\"Uhrzeit:\",IF(L!$B$6=\"Nederlands\",\"Tijd:\",IF(L!$B$6=\"Français\",\"Heure:\")))","v":"Tijd:"},null,"00:00:00"]
[]
[null,{"$f":"IF(L!$B$6=\"Deutsch\",\"ABSENDER:\",IF(L!$B$6=\"Nederlands\",\"AFZENDER:\",IF(L!$B$6=\"Français\",\"PAR:\")))","v":"AFZENDER:"},null,""]
[null,"E-mail ",null,{"$f":"IF(L!$D$12=1,\"\",IF(L!$D$12=2,Contactgegevens!C2,IF(L!$D$12=3,Contactgegevens!C3,IF(L!$D$12=4,Contactgegevens!C4,IF(L!$D$12=5,Contactgegevens!C5,IF(L!$D$12=6,Contactgegevens!C6,IF(L!$D$12=7,Contactgegevens!C7,IF(L!$D$12=8,Contactgegevens!C8,IF(L!$D$12=9,Contactgegevens!C9)))))))))","v":""}]
[null,"Tel. ",null,{"$f":"IF(L!$D$12=1,\"\",IF(L!$D$12=2,Contactgegevens!B2,IF(L!$D$12=3,Contactgegevens!B3,IF(L!$D$12=4,Contactgegevens!B4,IF(L!$D$12=5,Contactgegevens!B5,IF(L!$D$12=6,Contactgegevens!B6,IF(L!$D$12=7,Contactgegevens!B7,IF(L!$D$12=8,Contactgegevens!B8,IF(L!$D$12=9,Contactgegevens!B9)))))))))","v":""}]
[null,"Fax.",null,{"$f":"IF(L!$D$12=1,\"\",IF(L!$D$12=2,Contactgegevens!D2,IF(L!$D$12=3,Contactgegevens!D3,IF(L!$D$12=4,Contactgegevens!D4,IF(L!$D$12=5,Contactgegevens!D5,IF(L!$D$12=6,Contactgegevens!D6,IF(L!$D$12=7,Contactgegevens!D7,IF(L!$D$12=8,Contactgegevens!D8,IF(L!$D$12=9,Contactgegevens!D9)))))))))","v":""}]
[]
[null,{"$f":"IF(L!$B$6=\"Deutsch\",\"ANSPRECHPARTNER:\",IF(L!$B$6=\"Nederlands\",\"CONTACTPERSOON:\",IF(L!$B$6=\"Français\",\"CORRESPONDANT:\")))","v":"CONTACTPERSOON:"}]
[null,"E-mail "]
[null,"Tel. "]
[null,"Fax."]
[]
[null,{"$f":"IF(L!$B$6=\"Deutsch\",V!$B$8,IF(L!$B$6=\"Nederlands\",V!$B$9,IF(L!$B$6=\"Français\",V!$B$10)))","v":"REDEN INFORMATIEVERSTREKKING:"},null,""]
[]
[null,{"$f":"IF(L!$B$6=\"Deutsch\",\"ORT DES VORFALLS:\",IF(L!$B$6=\"Nederlands\",\"PLAATS VAN HET INCIDENT:\",IF(L!$B$6=\"Français\",\"LIEU D'INCIDENT:\")))","v":"PLAATS VAN HET INCIDENT:"},null,{"$f":"IF(L!$B$6=\"Deutsch\",\"Ort\",IF(L!$B$6=\"Nederlands\",\"plaats\",IF(L!$B$6=\"Français\",\"lieu\")))","v":"plaats"}]
[null,null,null,{"$f":"IF(L!$B$6=\"Deutsch\",\"Adresse\",IF(L!$B$6=\"Nederlands\",\"adres\",IF(L!$B$6=\"Français\",\"adresse\")))","v":"adres"}]
[null,null,null,"GPS"]
[]
[]
[null,{"$f":"IF(L!$B$6=\"Deutsch\",\"EFFEKTGEBIET:\",IF(L!$B$6=\"Nederlands\",\"EFFECTGEBIED:\",IF(L!$B$6=\"Français\",\"RAYON D'EFFET:\")))","v":"EFFECTGEBIED:"},null,null,{"$f":"IF(L!$B$6=\"Deutsch\",V!B54,IF(L!$B$6=\"Nederlands\",V!B55,IF(L!$B$6=\"Français\",V!B56)))","v":"OPSCHALING:"},null,null,{"$f":"IF(L!$B$6=\"Deutsch\",V!B65,IF(L!$B$6=\"Nederlands\",V!B66,IF(L!$B$6=\"Français\",V!B67)))","v":"LIAISON:"}]
[]
[null,null,"Stadt Aachen",null,null,{"$f":"IF(OR(L!$D$12=5,L!D12=6,L!$D$12=7,L!$D$12=8),V!C56,IF(L!$D$12=9,V!D56,IF(OR(L!$D$12=2,L!$D$12=3,L!$D$12=4),V!E56,IF(L!$D$12=1,1))))","v":1},null,null,{"$f":"IF(L!$B$6=\"Deutsch\",V!C67,IF(L!$B$6=\"Nederlands\",V!D67,IF(L!$B$6=\"Français\",V!E67)))","v":"gewenst (meldkamer)"}]
[null,null,"Städteregion Aachen",null,null,{"$f":"IF(OR(L!$D$12=5,L!D$12=6,L!$D$12=7,L!$D$12=8),V!C57,IF(L!$D$12=9,V!D57,IF(OR(L!$D$12=2,L!$D$12=3,L!$D$12=4),V!E57,IF(L!$D$12=1,2))))","v":2},null,null,{"$f":"IF(L!$B$6=\"Deutsch\",V!C68,IF(L!$B$6=\"Nederlands\",V!D68,IF(L!$B$6=\"Français\",V!E68)))","v":"gewenst (ter plekke)"}]
[null,null,"Kreis Düren",null,null,{"$f":"IF(OR(L!$D$12=5,L!D$12=6,L!$D$12=7,L!$D$12=8),V!C58,IF(L!$D$12=9,V!D58,IF(OR(L!$D$12=2,L!$D$12=3,L!$D$12=4),V!E58,IF(L!$D$12=1,3))))","v":3},null,null,{"$f":"IF(L!$B$6=\"Deutsch\",V!C66,IF(L!$B$6=\"Nederlands\",V!D66,IF(L!$B$6=\"Français\",V!E66)))","v":"niet gewenst"}]
[null,null,"Kreis Euskirchen",null,null,{"$f":"IF(OR(L!$D$12=5,L!D$12=6,L!$D$12=7,L!$D$12=8),V!C59,IF(L!$D$12=9,V!D59,IF(OR(L!$D$12=2,L!$D$12=3,L!$D$12=4),V!E59,IF(L!$D$12=1,4))))","v":4}]
[null,null,"Kreis Heinsberg",null,null,{"$f":"IF(OR(L!$D$12=5,L!D$12=6,L!$D$12=7,L!$D$12=8),V!C60,IF(L!$D$12=9,V!D60,IF(OR(L!$D$12=2,L!$D$12=3,L!$D$12=4),V!E60,IF(L!$D$12=1,5))))","v":5},null,{"$f":"IF(L!$B$6=\"Deutsch\",V!B83,IF(L!$B$6=\"Nederlands\",V!B84,IF(L!$B$6=\"Français\",V!B85)))","v":"WAARSCHUWING VAN DE BEVOLKING:"}]
[null,null,"Liège",null,null,{"$f":"IF(OR(L!$D$12=5,L!D$12=6,L!$D$12=7,L!$D$12=8),V!C61,IF(L!$D$12=9,V!D61,IF(OR(L!$D$12=2,L!$D$12=3,L!$D$12=4),V!E61,IF(L!$D$12=1,6))))","v":6},null,null,{"$f":"IF(L!$B$6=\"Deutsch\",V!C84,IF(L!$B$6=\"Nederlands\",V!D84,IF(L!$B$6=\"Français\",V!E84)))","v":"nee"}]
[null,null,"Provincie Limburg (B)",null,null,{"$f":"IF(OR(L!$D$12=5,L!D$12=6,L!$D$12=7,L!$D$12=8),V!C62,IF(L!$D$12=9,V!D62,IF(OR(L!$D$12=2,L!$D$12=3,L!$D$12=4),V!E62,IF(L!$D$12=1,7))))","v":7},null,null,{"$f":"IF(L!$B$6=\"Deutsch\",V!C85,IF(L!$B$6=\"Nederlands\",V!D85,IF(L!$B$6=\"Français\",V!E85)))","v":"sirene"},{"$f":"IF(L!$B$6=\"Deutsch\",V!C38,IF(L!$B$6=\"Nederlands\",V!D38,IF(L!$B$6=\"Français\",V!E38)))","v":"anders, namelijk…"}]
[null,null,"Veligheidsregio Zuid-Limburg (NL)",null,null,null,null,null,{"$f":"IF(OR(L!$D$12=5,L!$D$12=6,L!$D$12=7,L!$D$12=8),V!C86,IF(L!$D$12=9,V!D86,IF(OR(L!$D$12=2,L!$D$12=3,L!$D$12=4),V!E86,IF(L!$D$12=1,\"App\"))))","v":"App"}]
[null,null,"Veligheidsregio Limburg Noord (NL)",null,null,null,null,null,{"$f":"IF(L!$B$6=\"Deutsch\",V!C87,IF(L!$B$6=\"Nederlands\",V!D87,IF(L!$B$6=\"Français\",V!E87)))","v":"media"}]
[]
[]
[null,{"$f":"IF(L!$B$6=\"Deutsch\",V!$B$23,IF(L!$B$6=\"Nederlands\",V!$B$24,IF(L!$B$6=\"Français\",V!$B$25)))","v":"GEVAREN:"}]
[]
[null,null,{"$f":"IF(L!$B$6=\"Deutsch\",V!C25,IF(L!$B$6=\"Nederlands\",V!D25,IF(L!$B$6=\"Français\",V!E25)))","v":"brand"},null,null,{"$f":"IF(L!$B$6=\"Deutsch\",V!C29,IF(L!$B$6=\"Nederlands\",V!D29,IF(L!$B$6=\"Français\",V!E29)))","v":"radioactieve straling"},null,null,{"$f":"IF(L!$B$6=\"Deutsch\",V!C35,IF(L!$B$6=\"Nederlands\",V!D35,IF(L!$B$6=\"Français\",V!E35)))","v":"overstroming"}]
[null,null,{"$f":"IF(L!$B$6=\"Deutsch\",V!C26, IF(L!$B$6=\"Nederlands\",V!D26, IF(L!$B$6=\"Français\",V!E26)))","v":"rookwolk"},null,null,{"$f":"IF(L!$B$6=\"Deutsch\",V!C31,IF(L!$B$6=\"Nederlands\",V!D31,IF(L!$B$6=\"Français\",V!E31)))","v":"gifwolk"},null,null,{"$f":"IF(L!$B$6=\"Deutsch\",V!C38,IF(L!$B$6=\"Nederlands\",V!D38,IF(L!$B$6=\"Français\",V!E38)))","v":"anders, namelijk…"}]
[null,null,{"$f":"IF(L!$B$6=\"Deutsch\",V!C28, IF(L!$B$6=\"Nederlands\",V!D28,IF(L!$B$6=\"Français\",V!E28)))","v":"explosiegevaar"},null,null,{"$f":"IF(L!$B$6=\"Deutsch\",V!C34,IF(L!$B$6=\"Nederlands\",V!D34,IF(L!$B$6=\"Français\",V!E34)))","v":"infectiegevaar"}]
[]
[null,null,{"$f":"IF(L!$B$6=\"Deutsch\",V!C27,IF(L!$B$6=\"Nederlands\",V!D27,IF(L!$B$6=\"Français\",V!E27)))","v":"instortingsgevaar"},null,null,{"$f":"IF(L!$B$6=\"Deutsch\",V!C30,IF(L!$B$6=\"Nederlands\",V!D30,IF(L!$B$6=\"Français\",V!E30)))","v":"luchtverontreiniging"}]
[null,null,{"$f":"IF(L!$B$6=\"Deutsch\",V!C36,IF(L!$B$6=\"Nederlands\",V!D36,IF(L!$B$6=\"Français\",V!E36)))","v":"aardverschuiving"},null,null,{"$f":"IF(L!$B$6=\"Deutsch\",V!C32,IF(L!$B$6=\"Nederlands\",V!D32,IF(L!$B$6=\"Français\",V!E32)))","v":"bodemvervuiling"}]
[null,null,{"$f":"IF(L!$B$6=\"Deutsch\",V!C37,IF(L!$B$6=\"Nederlands\",V!D37,IF(L!$B$6=\"Français\",V!E37)))","v":"bodemverzakking"},null,null,{"$f":"IF(L!$B$6=\"Deutsch\",V!C33,IF(L!$B$6=\"Nederlands\",V!D33,IF(L!$B$6=\"Français\",V!E33)))","v":"vervuiling van het (binnen)water"}]
[]
[]
[null,{"$f":"IF(L!$B$6=\"Deutsch\",V!C80,IF(L!$B$6=\"Nederlands\",V!D80,IF(L!$B$6=\"Français\",V!E80)))","v":"Notificatie- / Alarmniveau"}]
[]
[]
[null,{"$f":"V!F94","v":"N: Door Electrabel vastgelegde fase."}]
[null,{"$f":"V!F95","v":"U: Door FANC/ Min. Van Binnenlandse Zaken België vastgelegde fase. De U-Fase vervangt de N-fase."}]
[null,{"$f":"V!F96","v":"INES: Internationale schaal van nucleaire incidenten"}]
[]
[null,{"$f":"IF(L!$B$6=\"Deutsch\",\"EMPFÄNGER:\",IF(L!$B$6=\"Nederlands\",\"AAN:\",IF(L!$B$6=\"Français\",\"À:\")))","v":"AAN:"}]
[]
[null,{"$f":"IF(L!$B$6=\"Deutsch\",V!$C$77,IF(L!$B$6=\"Nederlands\",V!$D$77,IF(L!$B$6=\"Français\",V!$E$77)))","v":"Meldkamer effectgebied"},null,{"$f":"L!E8","v":"Meldkamer Kreis Düren (D)"}]
[null,"E-mail ",null,{"$f":"IF(D64=\"\",\"\", IF(D64=L!$E$8,Contactgegevens!$C$6, IF(D64=L!$E$9,Contactgegevens!$C$7, IF(D64=L!$E$10,Contactgegevens!$C$8, IF(D64=L!$E$5,Contactgegevens!$C$3, IF(D64=L!$E$6,Contactgegevens!$C$4))))))","v":"Leitstelle@Kreis-Dueren.de"}]
[null,"Tel. ",null,{"$f":"IF(D64=\"\",\"\", IF(D64=L!$E$8,Contactgegevens!$B$6, IF(D64=L!$E$9,Contactgegevens!$B$7, IF(D64=L!$E$10,Contactgegevens!$B$8, IF(D64=L!$E$5,Contactgegevens!$B$3, IF(D64=L!$E$6,Contactgegevens!$B$4))))))","v":"0049 2421 5590"}]
[null,"Fax.",null,{"$f":"IF(D64=\"\",\"\",IF(D64=L!$E$8,Contactgegevens!$D$6,IF(D64=L!$E$9,Contactgegevens!$D$7,IF(D64=L!$E$10,Contactgegevens!$D$8,IF(D64=L!$E$5,Contactgegevens!$D$3,IF(D64=L!$E$6,Contactgegevens!$D$4))))))","v":"0049 2421 559155"}]
[]
[null,{"$f":"IF(L!$B$6=\"Deutsch\",V!$C$77,IF(L!$B$6=\"Nederlands\",V!$D$77,IF(L!$B$6=\"Français\",V!$E$77)))","v":"Meldkamer effectgebied"},null,{"$f":"L!E9","v":"Meldkamer Kreis Euskirchen (D)"}]
[null,"E-mail ",null,{"$f":"IF(D69=\"\",\"\", IF(D69=L!$E$8,Contactgegevens!$C$6, IF(D69=L!$E$9,Contactgegevens!$C$7, IF(D69=L!$E$10,Contactgegevens!$C$8, IF(D69=L!$E$5,Contactgegevens!$C$3, IF(D69=L!$E$6,Contactgegevens!$C$4))))))","v":"Leitstelle@Kreis-Euskirchen.de / Leitstelle@Gefahrenabwehr-Kreis-Euskirchen.de"}]
[null,"Tel. ",null,{"$f":"IF(D69=\"\",\"\", IF(D69=L!$E$8,Contactgegevens!$B$6, IF(D69=L!$E$9,Contactgegevens!$B$7, IF(D69=L!$E$10,Contactgegevens!$B$8, IF(D69=L!$E$5,Contactgegevens!$B$3, IF(D69=L!$E$6,Contactgegevens!$B$4))))))","v":"0049 2251 5036"}]
[null,"Fax.",null,{"$f":"IF(D69=\"\",\"\",IF(D69=L!$E$8,Contactgegevens!$D$6,IF(D69=L!$E$9,Contactgegevens!$D$7,IF(D69=L!$E$10,Contactgegevens!$D$8,IF(D69=L!$E$5,Contactgegevens!$D$3,IF(D69=L!$E$6,Contactgegevens!$D$4))))))","v":"0049 2251 72303"}]
[]
[null,{"$f":"IF(L!$B$6=\"Deutsch\",V!$C$77,IF(L!$B$6=\"Nederlands\",V!$D$77,IF(L!$B$6=\"Français\",V!$E$77)))","v":"Meldkamer effectgebied"},null,{"$f":"L!E10","v":"Meldkamer Kreis Heinsberg (D)"}]
[null,"E-mail ",null,{"$f":"IF(D74=\"\",\"\", IF(D74=L!$E$8,Contactgegevens!$C$6, IF(D74=L!$E$9,Contactgegevens!$C$7, IF(D74=L!$E$10,Contactgegevens!$C$8, IF(D74=L!$E$5,Contactgegevens!$C$3, IF(D74=L!$E$6,Contactgegevens!$C$4))))))","v":"Leitstelle@Kreis-Heinsberg.de"}]
[null,"Tel. ",null,{"$f":"IF(D74=\"\",\"\", IF(D74=L!$E$8,Contactgegevens!$B$6, IF(D74=L!$E$9,Contactgegevens!$B$7, IF(D74=L!$E$10,Contactgegevens!$B$8, IF(D74=L!$E$5,Contactgegevens!$B$3, IF(D74=L!$E$6,Contactgegevens!$B$4))))))","v":" 0049 243119296"}]
[null,"Fax.",null,{"$f":"IF(D74=\"\",\"\",IF(D74=L!$E$8,Contactgegevens!$D$6,IF(D74=L!$E$9,Contactgegevens!$D$7,IF(D74=L!$E$10,Contactgegevens!$D$8,IF(D74=L!$E$5,Contactgegevens!$D$3,IF(D74=L!$E$6,Contactgegevens!$D$4))))))","v":" 0049 2452 13887000"}]
[]
[null,{"$f":"IF(L!$B$6=\"Deutsch\",V!$C$77,IF(L!$B$6=\"Nederlands\",V!$D$77,IF(L!$B$6=\"Français\",V!$E$77)))","v":"Meldkamer effectgebied"},null,{"$f":"L!E5","v":"CS 112 Limburg (B)"}]
[null,"E-mail ",null,{"$f":"IF(D79=\"\",\"\", IF(D79=L!$E$8,Contactgegevens!$C$6, IF(D79=L!$E$9,Contactgegevens!$C$7, IF(D79=L!$E$10,Contactgegevens!$C$8, IF(D79=L!$E$5,Contactgegevens!$C$3, IF(D79=L!$E$6,Contactgegevens!$C$4))))))","v":"HCS112limburg@ibz.fgov.be"}]
[null,"Tel. ",null,{"$f":"IF(D79=\"\",\"\", IF(D79=L!$E$8,Contactgegevens!$B$6, IF(D79=L!$E$9,Contactgegevens!$B$7, IF(D79=L!$E$10,Contactgegevens!$B$8, IF(D79=L!$E$5,Contactgegevens!$B$3, IF(D79=L!$E$6,Contactgegevens!$B$4))))))","v":"0032 11 278531"}]
[null,"Fax.",null,{"$f":"IF(D79=\"\",\"\",IF(D79=L!$E$8,Contactgegevens!$D$6,IF(D79=L!$E$9,Contactgegevens!$D$7,IF(D79=L!$E$10,Contactgegevens!$D$8,IF(D79=L!$E$5,Contactgegevens!$D$3,IF(D79=L!$E$6,Contactgegevens!$D$4))))))","v":"0032 11 220096"}]
[]
[null,{"$f":"IF(L!$B$6=\"Deutsch\",V!$C$77,IF(L!$B$6=\"Nederlands\",V!$D$77,IF(L!$B$6=\"Français\",V!$E$77)))","v":"Meldkamer effectgebied"},null,{"$f":"L!E6","v":"Zone-meldkamer Oost-Limburg (B)"}]
[null,"E-mail ",null,{"$f":"IF(D84=\"\",\"\", IF(D84=L!$E$8,Contactgegevens!$C$6, IF(D84=L!$E$9,Contactgegevens!$C$7, IF(D84=L!$E$10,Contactgegevens!$C$8, IF(D84=L!$E$5,Contactgegevens!$C$3, IF(D84=L!$E$6,Contactgegevens!$C$4))))))","v":"dispatch@bwol.be"}]
[null,"Tel. ",null,{"$f":"IF(D84=\"\",\"\", IF(D84=L!$E$8,Contactgegevens!$B$6, IF(D84=L!$E$9,Contactgegevens!$B$7, IF(D84=L!$E$10,Contactgegevens!$B$8, IF(D84=L!$E$5,Contactgegevens!$B$3, IF(D84=L!$E$6,Contactgegevens!$B$4))))))","v":"0032 89 35 28 88"}]
[null,"Fax.",null,{"$f":"IF(D84=\"\",\"\",IF(D84=L!$E$8,Contactgegevens!$D$6,IF(D84=L!$E$9,Contactgegevens!$D$7,IF(D84=L!$E$10,Contactgegevens!$D$8,IF(D84=L!$E$5,Contactgegevens!$D$3,IF(D84=L!$E$6,Contactgegevens!$D$4))))))","v":"0032 89 65 33 00"}]
[]
[null,{"$f":"IF(L!$B$6=\"Deutsch\",V!C74,\nIF(L!$B$6=\"Nederlands\",V!D74,\nIF(L!$B$6=\"Français\",V!E74)))","v":"Centrale Meldkamer België"},null,{"$f":"L!E4","v":"CS 112 Luik (B)"}]
[null,"E-mail ",null,{"$f":"Contactgegevens!C2","v":"dispatchers@cs112.com"}]
[null,"Tel. ",null,{"$f":"Contactgegevens!B2","v":"0032 43 41 99 41"}]
[null,"Fax.",null,{"$f":"Contactgegevens!D2","v":"0032 43 41 30 87"}]
[]
[null,{"$f":"IF(L!$B$6=\"Deutsch\",V!C72,\nIF(L!$B$6=\"Nederlands\",V!D72,\nIF(L!$B$6=\"Français\",V!E72)))","v":"Centrale Meldkamer Duitsland"},null,{"$f":"L!E7","v":"Meldkamer Stad/StädteRegion Aken (D)"}]
[null,"E-mail ",null,{"$f":"Contactgegevens!C5","v":"Leitstelle.StaedteRegion.Aachen@mail.aachen.de"}]
[null,"Tel. ",null,{"$f":"Contactgegevens!B5","v":"0049 241 19296"}]
[null,"Fax.",null,{"$f":"Contactgegevens!D5","v":"0049 241 512527"}]
[]
[null,{"$f":"IF(L!$B$6=\"Deutsch\",V!C73,\nIF(L!$B$6=\"Nederlands\",V!D73,\nIF(L!$B$6=\"Français\",V!E73)))","v":"Centrale Meldkamer Nederland"},null,{"$f":"L!E11","v":"Meldkamer Limburg (NL)"}]
[null,"E-mail ",null,{"$f":"Contactgegevens!C9","v":"meldkamerbrandweer@gmkl.nl"}]
[null,"Tel. ",null,{"$f":"Contactgegevens!B9","v":"0031 88 06 19 223    |   0031 88 06 19 273"}]
[null,"Fax.",null,{"$f":"Contactgegevens!D9","v":"0031 43 32 56 954"}]
[]
[null,"© EMRIC 2018"]

{"sheet":"L","index":1,"n_rows":72,"n_cols":12,"rows_kept":72,"cut":false,"hidden":true,"merged":[[0,2,0,10]]}
[{"$f":"IF(L!$B$6=\"Deutsch\",,IF(L!$B$6=\"Nederlands\",,IF(L!$B$6=\"Français\",)))","v":0},null,{"$f":"IF(L!$B$6=\"Deutsch\",\"ÜBUNG - ÜBUNG - ÜBUNG - ÜBUNG - ÜBUNG - ÜBUNG - ÜBUNG - ÜBUNG\",IF(L!$B$6=\"Nederlands\",\"OEFENING - OEFENING - OEFENING - OEFENING - OEFENING - OEFENING\",IF(L!$B$6=\"Français\",\"EXERCICE - EXERCICE - EXERCICE - EXERCICE - EXERCICE - EXERCICE\")))","v":"OEFENING - OEFENING - OEFENING - OEFENING - OEFENING - OEFENING"},null,null,null,null,null,null,"N…","U…","INES…"]
[null,"Sprache",null,null,"Leitstellen",null,null,"Info-Gründe",null,"N1","U1","INES 1"]
[null,"Deutsch",null,1,null,null,1,null,null,"N2","U2","INES 2"]
[null,"Nederlands",null,2,{"$f":"IF(L!$B$6=\"Deutsch\",V!C43,IF(L!$B$6=\"Nederlands\",V!D43,IF(L!$B$6=\"Français\",V!E43)))","v":"CS 112 Luik (B)"},null,2,{"$f":"IF(L!$B$6=\"Deutsch\",V!C10,IF(L!$B$6=\"Nederlands\",V!D10,IF(L!$B$6=\"Français\",V!E10)))","v":"grote brand"},null,"N3","U3","INES 3"]
[null,"Français",null,3,{"$f":"IF(L!$B$6=\"Deutsch\",V!C44,IF(L!$B$6=\"Nederlands\",V!D44,IF(L!$B$6=\"Français\",V!E44)))","v":"CS 112 Limburg (B)"},null,3,{"$f":"IF(L!$B$6=\"Deutsch\",V!C11,IF(L!$B$6=\"Nederlands\",V!D11,IF(L!$B$6=\"Français\",V!E11)))","v":"incident met gevaarlijke stoffen"},null,"NR","UR","INES 4"]
[null,"Nederlands",null,4,{"$f":"IF(L!$B$6=\"Deutsch\",V!C45,IF(L!$B$6=\"Nederlands\",V!D45,IF(L!$B$6=\"Français\",V!E45)))","v":"Zone-meldkamer Oost-Limburg (B)"},null,4,{"$f":"IF(L!$B$6=\"Deutsch\",V!C12,IF(L!$B$6=\"Nederlands\",V!D12,IF(L!$B$6=\"Français\",V!E12)))","v":"incident met explosieven"},null,null,null,"INES 5"]
[null,null,null,5,{"$f":"IF(L!$B$6=\"Deutsch\",V!C46,IF(L!$B$6=\"Nederlands\",V!D46,IF(L!$B$6=\"Français\",V!E46)))","v":"Meldkamer Stad/StädteRegion Aken (D)"},null,5,{"$f":"IF(L!$B$6=\"Deutsch\",V!C13,IF(L!$B$6=\"Nederlands\",V!D13,IF(L!$B$6=\"Français\",V!E13)))","v":"media-aandacht"},null,null,null,"INES 6"]
[null,null,null,6,{"$f":"IF(L!$B$6=\"Deutsch\",V!C47,IF(L!$B$6=\"Nederlands\",V!D47,IF(L!$B$6=\"Français\",V!E47)))","v":"Meldkamer Kreis Düren (D)"},null,6,{"$f":"IF(L!$B$6=\"Deutsch\",V!C14,IF(L!$B$6=\"Nederlands\",V!D14,IF(L!$B$6=\"Français\",V!E14)))","v":"waarschuwing van eigen burgers"},null,null,null,"INES 7"]
[null,null,null,7,{"$f":"IF(L!$B$6=\"Deutsch\",V!C48,IF(L!$B$6=\"Nederlands\",V!D48,IF(L!$B$6=\"Français\",V!E48)))","v":"Meldkamer Kreis Euskirchen (D)"},null,7,{"$f":"IF(L!$B$6=\"Deutsch\",V!C15,IF(L!$B$6=\"Nederlands\",V!D15,IF(L!$B$6=\"Français\",V!E15)))","v":"uitbraak van infectieziekte(n)"}]
[null,{"$f":"IF(L!$B$6=\"Deutsch\",\"Effektgebiet:\",IF(L!$B$6=\"Nederlands\",\"Effectgebied:\",IF(L!$B$6=\"Français\",\"Rayon d'effet:\")))","v":"Effectgebied:"},null,8,{"$f":"IF(L!$B$6=\"Deutsch\",V!C49,IF(L!$B$6=\"Nederlands\",V!D49,IF(L!$B$6=\"Français\",V!E49)))","v":"Meldkamer Kreis Heinsberg (D)"},null,8,{"$f":"IF(L!$B$6=\"Deutsch\",V!C16,IF(L!$B$6=\"Nederlands\",V!D16,IF(L!$B$6=\"Français\",V!E16)))","v":"incident bij energiecentrale"}]
[null,{"$f":"IF(L!$B$6=\"Deutsch\",\"keins\",IF(L!$B$6=\"Nederlands\",\"geen\",IF(L!$B$6=\"Français\",\"aucun\")))","v":"geen"},null,9,{"$f":"IF(L!$B$6=\"Deutsch\",V!C50,IF(L!$B$6=\"Nederlands\",V!D50,IF(L!$B$6=\"Français\",V!E50)))","v":"Meldkamer Limburg (NL)"},null,9,{"$f":"IF(L!$B$6=\"Deutsch\",V!C17,IF(L!$B$6=\"Nederlands\",V!D17,IF(L!$B$6=\"Français\",V!E17)))","v":"crisissituatie"}]
["Liège",false,null,1,{"$f":"IF(D12=1,E3,IF(D12=2,E4,IF(D12=3,E5,IF(D12=4,E6,IF(D12=5,E7,IF(D12=6,E8,IF(D12=7,E9,IF(D12=8,E10,IF(D12=9,E11)))))))))","v":0},null,10,{"$f":"IF(L!$B$6=\"Deutsch\",V!C18,IF(L!$B$6=\"Nederlands\",V!D18,IF(L!$B$6=\"Français\",V!E18)))","v":"groot aantal gewonden"}]
["Limburg",false,null,null,null,null,11,{"$f":"IF(L!$B$6=\"Deutsch\",V!C19,IF(L!$B$6=\"Nederlands\",V!D19,IF(L!$B$6=\"Français\",V!E19)))","v":"anders, namelijk…"}]
["Aachen",false,null,null,null,null,1]
["Städteregion",false,null,null,"Gefahr Strahlung:"]
["Euskirchen",false,null,null,false]
["Düren",false]
["Heinsberg",false]
["Zuid-Limburg",false]
["Limburg Noord",false]
[]
[null,"Info an Bevölkerung"]
[null,{"$f":"IF(L!$B$6=\"Deutsch\",\"ja\",IF(L!$B$6=\"Nederlands\",\"ja\",IF(L!$B$6=\"Français\",\"oui\")))","v":"ja"}]
[null,{"$f":"IF(L!$B$6=\"Deutsch\",\"nein\",IF(L!$B$6=\"Nederlands\",\"nee\",IF(L!$B$6=\"Français\",\"non\")))","v":"nee"}]
[]
[]
[null,"NL-Alert"]
[null,"Radio"]
[null,"Sirene"]
[]
[]
[null,"Verbindungsbeamter"]
[null,{"$f":"IF(L!$B$6=\"Deutsch\",V!C67,IF(L!$B$6=\"Nederlands\",V!D67,IF(L!$B$6=\"Français\",V!E67)))","v":"gewenst (meldkamer)"}]
[null,{"$f":"IF(L!$B$6=\"Deutsch\",V!C66,IF(L!$B$6=\"Nederlands\",V!D66,IF(L!$B$6=\"Français\",V!E66)))","v":"niet gewenst"}]
[]
[]
[]
[]
[]
[]
[]
[]
[]
[]
[]
[]
[]
[]
[]
[]
[]
[]
[]
[]
[]
[]
[]
[null,null,null,null,null,null,{"$f":"IF(L!$B$6=\"Deutsch\",V!$B$54,IF(AND(L!$B$6=\"Nederlands\",L!$E$12=\"Meldkamer Limburg Hasselt\"),V!$B$55,IF(L!$B$6=\"Français\",V!B57)))","v":false}]
[]
[]
[null,"Belgische Zonen-Leitstellen"]
[]
[null,"Hulpverleningszone Noord-Limburg"]
[null,"Hulpverleningszone Oost-Limburg"]
[null,"Hulpverleningszone Zuid-West Limburg"]
[null,"Zone de secours Hesbaye"]
[null,"Liège Zone 2 IILE-SRI"]
[null,"Zone de secours Hemeco"]
[null,"Zone de secours VesdreHoëgne & Plateau"]
[null,"Zone de secours 5 Warche Amblève Lienne"]
[null,"Zone Liège VI (Deutschsprachige Gemeinschaft)"]
[null,""]

{"sheet":"V","index":2,"n_rows":99,"n_cols":7,"rows_kept":99,"cut":false,"hidden":true,"merged":[]}
[1,"B","C","D","E"]
[2]
[3]
[4,"ABLAUF:","Deutsch","Nederlands","Français",{"$f":"IF(L!$B$6=\"Deutsch\",C4,IF(L!$B$6=\"Nederlands\",D4,IF(L!$B$6=\"Français\",E4)))","v":"Nederlands"}]
[5,"PROCEDURE:"]
[6,"PROCEDURE:","1. Telefonischer Kontakt\n2. Formular ausfüllen und per Mail (oder Fax) verschicken\n3. Der weitere Verlauf kann in LCMS (NL) / ICMS (B) verfolgt werden\n    Die deutschen Leitstellen senden ihre Lageberichte an die benachbarten Kollegen","1. Telefonisch contact\n2. Formulier invullen en per mail (of fax) versturen\n3. Kijk verder op LCMS (NL) / ICMS (B)\n    De Duitse meldkamers sturen sitraps aan de buurmeldkamers","1. Téléphoner\n2. Remplir formulaire et envoyer par mail (ou fax)\n3. Suite à suivre sur LCMS (NL) / ICMS (B). Les centrales allemandes envoyent des sitreps aux centrales voisines",{"$f":"IF(L!$B$6=\"Deutsch\",C6,IF(L!$B$6=\"Nederlands\",D6,IF(L!$B$6=\"Français\",E6)))","v":"1. Telefonisch contact\n2. Formulier invullen en per mail (of fax) versturen\n3. Kijk verder op LCMS (NL) / ICMS (B)\n    De Duitse meldkamers sturen sitraps aan de buurmeldkamers"}]
[7]
[8,"IMFORMATIONSGRUND:","Deutsch","Nederlands","Français"]
[9,"REDEN INFORMATIEVERSTREKKING:"]
[10,"RAISON D' INFORMATION:","großer Brand","grote brand","gros incendie",{"$f":"IF(L!$B$6=\"Deutsch\",C10,IF(L!$B$6=\"Nederlands\",D10,IF(L!$B$6=\"Français\",E10)))","v":"grote brand"}]
[11,null,"Vorfall mit Gefahrgütern","incident met gevaarlijke stoffen","accidents biologiques/chimiques/radioactifs",{"$f":"IF(L!$B$6=\"Deutsch\",C11,IF(L!$B$6=\"Nederlands\",D11,IF(L!$B$6=\"Français\",E11)))","v":"incident met gevaarlijke stoffen"}]
[12,null,"Vorfall mit explosiven Stoffen","incident met explosieven","accident avec explosives",{"$f":"IF(L!$B$6=\"Deutsch\",C12,IF(L!$B$6=\"Nederlands\",D12,IF(L!$B$6=\"Français\",E12)))","v":"incident met explosieven"}]
[13,null,"Medien-Interesse","media-aandacht","attention des médias",{"$f":"IF(L!$B$6=\"Deutsch\",C13,IF(L!$B$6=\"Nederlands\",D13,IF(L!$B$6=\"Français\",E13)))","v":"media-aandacht"}]
[14,null,"Informierung der eigenen Bürger","waarschuwing van eigen burgers","alerte aux propres citoyens",{"$f":"IF(L!$B$6=\"Deutsch\",C14,IF(L!$B$6=\"Nederlands\",D14,IF(L!$B$6=\"Français\",E14)))","v":"waarschuwing van eigen burgers"}]
[15,null,"Ausbruch von Infektionskrankheit(en)","uitbraak van infectieziekte(n)","maladie infectieuse",{"$f":"IF(L!$B$6=\"Deutsch\",C15,IF(L!$B$6=\"Nederlands\",D15,IF(L!$B$6=\"Français\",E15)))","v":"uitbraak van infectieziekte(n)"}]
[16,null,"Kraftwerkunfall","incident bij energiecentrale","accident dans centrale d'électricité",{"$f":"IF(L!$B$6=\"Deutsch\",C16,IF(L!$B$6=\"Nederlands\",D16,IF(L!$B$6=\"Français\",E16)))","v":"incident bij energiecentrale"}]
[17,null,"Krisensituation","crisissituatie","situation de crise",{"$f":"IF(L!$B$6=\"Deutsch\",C17,IF(L!$B$6=\"Nederlands\",D17,IF(L!$B$6=\"Français\",E17)))","v":"crisissituatie"}]
[18,null,"Massenanfall von Verletzten","groot aantal gewonden","un grand nombre de blessés",{"$f":"IF(L!$B$6=\"Deutsch\",C18,IF(L!$B$6=\"Nederlands\",D18,IF(L!$B$6=\"Français\",E18)))","v":"groot aantal gewonden"}]
[19,null,"Sonstige, nämlich…","anders, namelijk…","autre, à savoir",{"$f":"IF(L!$B$6=\"Deutsch\",C19,IF(L!$B$6=\"Nederlands\",D19,IF(L!$B$6=\"Français\",E19)))","v":"anders, namelijk…"}]
[20]
[21]
[22]
[23,"GEFAHREN:","Deutsch","Nederlands","Français"]
[24,"GEVAREN:"]
[25,"DANGERS:","Feuer","brand","incendie",{"$f":"IF(L!$B$6=\"Deutsch\",C25,IF(L!$B$6=\"Nederlands\",D25,IF(L!$B$6=\"Français\",E25)))","v":"brand"},"Gefahr1"]
[26,null,"Rauchwolke","rookwolk","fumée",{"$f":"IF(L!$B$6=\"Deutsch\",C26,IF(L!$B$6=\"Nederlands\",D26,IF(L!$B$6=\"Français\",E26)))","v":"rookwolk"},"Gefahr2"]
[27,null,"Einsturzgefahr","instortingsgevaar","danger d'effondrement de bâtiment",{"$f":"IF(L!$B$6=\"Deutsch\",C27,IF(L!$B$6=\"Nederlands\",D27,IF(L!$B$6=\"Français\",E27)))","v":"instortingsgevaar"},"Gefahr3"]
[28,null,"Explosionsgefahr","explosiegevaar","danger d'explosion",{"$f":"IF(L!$B$6=\"Deutsch\",C28,IF(L!$B$6=\"Nederlands\",D28,IF(L!$B$6=\"Français\",E28)))","v":"explosiegevaar"},"Gefahr4"]
[29,null,"Radioaktive Strahlung","radioactieve straling","radiation ",{"$f":"IF(L!$B$6=\"Deutsch\",C29,IF(L!$B$6=\"Nederlands\",D29,IF(L!$B$6=\"Français\",E29)))","v":"radioactieve straling"},"Gefahr5"]
[30,null,"Luftverschmutzung","luchtverontreiniging","pollution de l'air",{"$f":"IF(L!$B$6=\"Deutsch\",C30,IF(L!$B$6=\"Nederlands\",D30,IF(L!$B$6=\"Français\",E30)))","v":"luchtverontreiniging"},"Gefahr6"]
[31,null,"Giftwolke","gifwolk","nuage toxique",{"$f":"IF(L!$B$6=\"Deutsch\",C31,IF(L!$B$6=\"Nederlands\",D31,IF(L!$B$6=\"Français\",E31)))","v":"gifwolk"},"Gefahr7"]
[32,null,"Bodenverschmutzung","bodemvervuiling","pollution du sol",{"$f":"IF(L!$B$6=\"Deutsch\",C32,IF(L!$B$6=\"Nederlands\",D32,IF(L!$B$6=\"Français\",E32)))","v":"bodemvervuiling"},"Gefahr8"]
[33,null,"Verschmutzung von (Binnen-)Gewässern","vervuiling van het (binnen)water","pollution des cours d'eau ",{"$f":"IF(L!$B$6=\"Deutsch\",C33,IF(L!$B$6=\"Nederlands\",D33,IF(L!$B$6=\"Français\",E33)))","v":"vervuiling van het (binnen)water"},"Gefahr9"]
[34,null,"Infektionsgefahr","infectiegevaar","danger d'infection",{"$f":"IF(L!$B$6=\"Deutsch\",C34,IF(L!$B$6=\"Nederlands\",D34,IF(L!$B$6=\"Français\",E34)))","v":"infectiegevaar"},"Gefahr10"]
[35,null,"Überschwemmung","overstroming","inondation",{"$f":"IF(L!$B$6=\"Deutsch\",C35,IF(L!$B$6=\"Nederlands\",D35,IF(L!$B$6=\"Français\",E35)))","v":"overstroming"},"Gefahr11"]
[36,null,"Erdrutschgefahr","aardverschuiving","glissement de terrain",{"$f":"IF(L!$B$6=\"Deutsch\",C36,IF(L!$B$6=\"Nederlands\",D36,IF(L!$B$6=\"Français\",E36)))","v":"aardverschuiving"},"Gefahr12"]
[37,null,"Tagebruchgefahr","bodemverzakking","effondrement de terre",{"$f":"IF(L!$B$6=\"Deutsch\",C37,IF(L!$B$6=\"Nederlands\",D37,IF(L!$B$6=\"Français\",E37)))","v":"bodemverzakking"},"Gefahr13"]
[38,null,"Sonstige, nämlich…","anders, namelijk…","autre, à savoir…",{"$f":"IF(L!$B$6=\"Deutsch\",C38,IF(L!$B$6=\"Nederlands\",D38,IF(L!$B$6=\"Français\",E38)))","v":"anders, namelijk…"},"Gefahr14"]
[39]
[40]
[41,"ABSENDER:","Deutsch","Nederlands","Français"]
[42,"AFZENDER:"]
[43,"PAR:","CS 112 Lüttich (B)","CS 112 Luik (B)","CS 112 Liège (B)",{"$f":"IF(L!$B$6=\"Deutsch\",C43,IF(L!$B$6=\"Nederlands\",D43,IF(L!$B$6=\"Français\",E43)))","v":"CS 112 Luik (B)"}]
[44,null,"CS 112 Limburg (B)","CS 112 Limburg (B)","CS 112 Limburg (B)",{"$f":"IF(L!$B$6=\"Deutsch\",C44,IF(L!$B$6=\"Nederlands\",D44,IF(L!$B$6=\"Français\",E44)))","v":"CS 112 Limburg (B)"}]
[45,null,"Zonen-Leitstelle Oost-Limburg (B)","Zone-meldkamer Oost-Limburg (B)","Centrale d'alerte Zone Oost-Limburg (B)",{"$f":"IF(L!$B$6=\"Deutsch\",C45,IF(L!$B$6=\"Nederlands\",D45,IF(L!$B$6=\"Français\",E45)))","v":"Zone-meldkamer Oost-Limburg (B)"}]
[46,null,"Leitstelle Stadt/StädteRegion Aachen (D)","Meldkamer Stad/StädteRegion Aken (D)","Centrale d'alerte Ville d'Aix + région d'Aix (D)",{"$f":"IF(L!$B$6=\"Deutsch\",C46,IF(L!$B$6=\"Nederlands\",D46,IF(L!$B$6=\"Français\",E46)))","v":"Meldkamer Stad/StädteRegion Aken (D)"}]
[47,null,"Leitstelle Kreis Düren (D)","Meldkamer Kreis Düren (D)","Centrale d'alerte Kreis Düren (D)",{"$f":"IF(L!$B$6=\"Deutsch\",C47,IF(L!$B$6=\"Nederlands\",D47,IF(L!$B$6=\"Français\",E47)))","v":"Meldkamer Kreis Düren (D)"}]
[48,null,"Leitstelle Kreis Euskirchen (D)","Meldkamer Kreis Euskirchen (D)","Centrale d'alerte Kreis Euskirchen (D)",{"$f":"IF(L!$B$6=\"Deutsch\",C48,IF(L!$B$6=\"Nederlands\",D48,IF(L!$B$6=\"Français\",E48)))","v":"Meldkamer Kreis Euskirchen (D)"}]
[49,null,"Leitstelle Kreis Heinsberg (D)","Meldkamer Kreis Heinsberg (D)","Centrale d'alerte Kreis Heinsberg (D)",{"$f":"IF(L!$B$6=\"Deutsch\",C49,IF(L!$B$6=\"Nederlands\",D49,IF(L!$B$6=\"Français\",E49)))","v":"Meldkamer Kreis Heinsberg (D)"}]
[50,null,"Leitstelle Limburg (NL)","Meldkamer Limburg (NL)","Centrale d'alerte Limburg (NL)",{"$f":"IF(L!$B$6=\"Deutsch\",C50,IF(L!$B$6=\"Nederlands\",D50,IF(L!$B$6=\"Français\",E50)))","v":"Meldkamer Limburg (NL)"}]
[51]
[52]
[53]
[54,"FÜHRUNGSEBENE:","Deutschland","Niederlande","Belgien"]
[55,"OPSCHALING:"]
[56,"FASE / PHASE:","Standard-Einsatz","standaardinzet","standaardinzet / mission standard",{"$f":"IF(L!$B$6=\"Deutsch\",C56,IF(L!$B$6=\"Nederlands\",D56,IF(L!$B$6=\"Français\",E56)))","v":"standaardinzet"}]
[57,null,"Einsatzleiter (kommunal)","GRIP 1","gemeentelijke fase / phase communale",{"$f":"IF(L!$B$6=\"Deutsch\",C57,IF(L!$B$6=\"Nederlands\",D57,IF(L!$B$6=\"Français\",E57)))","v":"GRIP 1"}]
[58,null,"Stab außergewöhnliche Ereignisse (SAE)","GRIP 2","provinciale fase / phase provinciale",{"$f":"IF(L!$B$6=\"Deutsch\",C58,IF(L!$B$6=\"Nederlands\",D58,IF(L!$B$6=\"Français\",E58)))","v":"GRIP 2"}]
[59,null,"Einsatzleitung (Kreis/Kreisfreie Stadt)","GRIP 3","federale fase / phase fédérale",{"$f":"IF(L!$B$6=\"Deutsch\",C59,IF(L!$B$6=\"Nederlands\",D59,IF(L!$B$6=\"Français\",E59)))","v":"GRIP 3"}]
[60,null,"Krisenstab (Kreis/Kreisfreie Stadt)","GRIP 4","-",{"$f":"IF(L!$B$6=\"Deutsch\",C60,IF(L!$B$6=\"Nederlands\",D60,IF(L!$B$6=\"Français\",E60)))","v":"GRIP 4"}]
[61,null,"Krisenstab (Bezirksregierung)","GRIP 5","-",{"$f":"IF(L!$B$6=\"Deutsch\",C61,IF(L!$B$6=\"Nederlands\",D61,IF(L!$B$6=\"Français\",E61)))","v":"GRIP 5"}]
[62,null,"Krisenstab (Land)","-","-",{"$f":"IF(L!$B$6=\"Deutsch\",C62,IF(L!$B$6=\"Nederlands\",D62,IF(L!$B$6=\"Français\",E62)))","v":"-"}]
[63]
[64]
[65,"VERBINDUNGSBEAMTER:","Deutsch","Nederlands","Français"]
[66,"LIAISON:","nicht gewünscht","niet gewenst","pas voulu",{"$f":"IF(L!$B$6=\"Deutsch\",C66,IF(L!$B$6=\"Nederlands\",D66,IF(L!$B$6=\"Français\",E66)))","v":"niet gewenst"}]
[67,"LIAISON:","gewünscht (Leitstelle)","gewenst (meldkamer)","voulu (centrale d'alerte)",{"$f":"IF(L!$B$6=\"Deutsch\",C67,IF(L!$B$6=\"Nederlands\",D67,IF(L!$B$6=\"Français\",E67)))","v":"gewenst (meldkamer)"}]
[68,null,"gewünscht (Einsatzort)","gewenst (ter plekke)","voulu (sur le terrein)",{"$f":"IF(L!$B$6=\"Deutsch\",C68,IF(L!$B$6=\"Nederlands\",D68,IF(L!$B$6=\"Français\",E68)))","v":"gewenst (ter plekke)"}]
[69]
[70]
[71,null,"Deutsch","Nederlands","Français"]
[72,null,"Meldekopf Deutschland","Centrale Meldkamer Duitsland","centrale de transmission Allemagne",{"$f":"IF(L!$B$6=\"Deutsch\",C72,IF(L!$B$6=\"Nederlands\",D72,IF(L!$B$6=\"Français\",E72)))","v":"Centrale Meldkamer Duitsland"}]
[73,null,"Meldekopf Niederlande","Centrale Meldkamer Nederland","centrale de transmission Pays-Bas",{"$f":"IF(L!$B$6=\"Deutsch\",C73,IF(L!$B$6=\"Nederlands\",D73,IF(L!$B$6=\"Français\",E73)))","v":"Centrale Meldkamer Nederland"}]
[74,null,"Meldekopf Belgien","Centrale Meldkamer België","centrale de transmission Belgique",{"$f":"IF(L!$B$6=\"Deutsch\",C74,IF(L!$B$6=\"Nederlands\",D74,IF(L!$B$6=\"Français\",E74)))","v":"Centrale Meldkamer België"}]
[75,null,"Meldekopf 1:","Centrale Meldkamer 1:","centrale de transmission 1:",{"$f":"IF(L!$B$6=\"Deutsch\",C75,IF(L!$B$6=\"Nederlands\",D75,IF(L!$B$6=\"Français\",E75)))","v":"Centrale Meldkamer 1:"}]
[76,null,"Meldekopf 2:","Centrale Meldkamer 2:","centrale de transmission 2:",{"$f":"IF(L!$B$6=\"Deutsch\",C76,IF(L!$B$6=\"Nederlands\",D76,IF(L!$B$6=\"Français\",E76)))","v":"Centrale Meldkamer 2:"}]
[77,null,"Leitstelle Effektgebiet","Meldkamer effectgebied","centrale d'alertes rayon d'effet",{"$f":"IF(L!$B$6=\"Deutsch\",C77,IF(L!$B$6=\"Nederlands\",D77,IF(L!$B$6=\"Français\",E77)))","v":"Meldkamer effectgebied"}]
[78]
[79]
[80,"N/U","Benachrichtigungs- / Alarmstufe","Notificatie- / Alarmniveau","Phase d'information et d'alarmement",{"$f":"IF(L!$B$6=\"Deutsch\",C80,IF(L!$B$6=\"Nederlands\",D80,IF(L!$B$6=\"Français\",E80)))","v":"Notificatie- / Alarmniveau"}]
[81]
[82]
[83,"WARNUNG DER BEVÖLKERUNG ERFOLGT:","ja","ja","oui",{"$f":"IF(L!$B$6=\"Deutsch\",C83,IF(L!$B$6=\"Nederlands\",D83,IF(L!$B$6=\"Français\",E83)))","v":"ja"}]
[84,"WAARSCHUWING VAN DE BEVOLKING:","nein","nee","non",{"$f":"IF(L!$B$6=\"Deutsch\",C84,IF(L!$B$6=\"Nederlands\",D84,IF(L!$B$6=\"Français\",E84)))","v":"nee"}]
[85,"ALERTE DES CITOYENS","Sirene","sirene","sirène",{"$f":"IF(L!$B$6=\"Deutsch\",C85,IF(L!$B$6=\"Nederlands\",D85,IF(L!$B$6=\"Français\",E85)))","v":"sirene"}]
[86,null,"NINA","NL-alert","BE-alert",{"$f":"IF(L!$B$6=\"Deutsch\",C86,IF(L!$B$6=\"Nederlands\",D86,IF(L!$B$6=\"Français\",E86)))","v":"NL-alert"}]
[87,null,"Medien","media","médias",{"$f":"IF(L!$B$6=\"Deutsch\",C87,IF(L!$B$6=\"Nederlands\",D87,IF(L!$B$6=\"Français\",E87)))","v":"media"}]
[88]
[89,null,"geheime Nummer für Leitstellen in der EMR","geheim nummer voor meldkamers in de EMR","Numéro secret pour centrale d'alerte dans l'EMR",{"$f":"IF(L!$B$6=\"Deutsch\",C89,IF(L!$B$6=\"Nederlands\",D89,IF(L!$B$6=\"Français\",E89)))","v":"geheim nummer voor meldkamers in de EMR"}]
[90,null,"spezielle Nummer für Leitstellen in der EMR","speciaal nummer voor meldkamers in de EMR","Numéro spécial pour centrale d'alerte dans l'EMR",{"$f":"IF(L!$B$6=\"Deutsch\",C90,IF(L!$B$6=\"Nederlands\",D90,IF(L!$B$6=\"Français\",E90)))","v":"speciaal nummer voor meldkamers in de EMR"}]
[91]
[92,null,"Version","Versie","Version",{"$f":"IF(L!$B$6=\"Deutsch\",C92,IF(L!$B$6=\"Nederlands\",D92,IF(L!$B$6=\"Français\",E92)))","v":"Versie"}]
[93]
[94,null,"N: Von Electrabel festgelegte Benachrichtigungsstufe.","N: Door Electrabel vastgelegde fase.","N: Fase défini par Electrabel.",{"$f":"IF(L!$B$6=\"Deutsch\",C94,IF(L!$B$6=\"Nederlands\",D94,IF(L!$B$6=\"Français\",E94)))","v":"N: Door Electrabel vastgelegde fase."}]
[95,null,"U: Von der FANC / vom belgischen Innenministerium bestätigte Alarmstufe. Diese ersetzt die N-Benachrichtigungsstufe.","U: Door FANC/ Min. Van Binnenlandse Zaken België vastgelegde fase. De U-Fase vervangt de N-fase.","U: Fase défini par le ANFC/ FOD intérieur. Cette fase remplace le fase N.",{"$f":"IF(L!$B$6=\"Deutsch\",C95,IF(L!$B$6=\"Nederlands\",D95,IF(L!$B$6=\"Français\",E95)))","v":"U: Door FANC/ Min. Van Binnenlandse Zaken België vastgelegde fase. De U-Fase vervangt de N-fase."}]
[96,null,"INES: Internationale Bewertungsskala für nukleare und radiologische Ereignisse","INES: Internationale schaal van nucleaire incidenten","INES: Échelle internationale de classement des événements nucléaires",{"$f":"IF(L!$B$6=\"Deutsch\",C96,IF(L!$B$6=\"Nederlands\",D96,IF(L!$B$6=\"Français\",E96)))","v":"INES: Internationale schaal van nucleaire incidenten"}]
[97]
[98,null,"HINWEISE:","LET OP!","REMARQUES:",{"$f":"IF(L!$B$6=\"Deutsch\",C98,IF(L!$B$6=\"Nederlands\",D98,IF(L!$B$6=\"Français\",E98)))","v":"LET OP!"}]
[99,null,"Dieses Formular arbeitet mit Makros, muss aber ohne Makros gespeichert werden um zu vermeiden, dass es beim Verschicken per Mail eventuell als Spam eingestuft wird.\nBitte beachten Sie daher unbedingt die folgenden zwei Hinweise:\n1. Es muss immer die ursprüngliche Vorlage ausgefüllt werden! Bei einem ausgefüllt gespeicherten Formular funktionieren die Funktionen teilweise nicht mehr richtig. Bitte öffnen Sie die Datei per Doppelklick; so wird automatisch eine Kopie der Datei geöffnet und die Vorlage bleibt unverändert.\n2. Das Formular muss als normale Excel-Datei ohne Makros gespeichert werden. Bei der durch Doppelklick erstellte Kopie geschieht dies automatisch . Excel weist dann beim Speichern darauf hin, dass das VB-Projekt nicht gespeichert werden kann; bitte klicken Sie hier auf \"JA\".","Dit formulier maakt gebruik van macros. Het formulier moet echter zonder macros worden opgeslagen, om te voorkomen dat het bij het versturen per e-mail in de spamfilter terecht komt. \nLet u hierbij alstublieft op de volgende instructies:\n1. Het oorspronkelijke sjabloon dient altijd ingevuld te worden! Bij een ingevuld en opgeslagen formulier werken een aantal functies niet meer correct. Opent u alstublieft het bestand middels dubbelklikken; hierdoor wordt automatisch een kopie van het bestand geopend zonder het originele sjabloon te wijzigen.\n2. Het formulier moet als normaal Excel-bestand zonder macros worden opgeslagen. Bij het opslaan geeft Excel de melding dat het VB-project niet kan worden opgeslagen; klikt u hier alstublieft op “JA”.","Ce formulaire travaille avec des macros, mais doit être enregistré sans macros pour éviter une classification comme spam lors de l’envoi.\nVeuillez s.v.p. tenir compte des deux points suivants:\n1. Le modèle initial doit toujours être rempli! Avec un formulaire enregistré, les fonctions ne fonctionnent partiellement plus. Veuillez s.v.p. ouvrir le fichier par\ndouble-clic; une copie du fichier sera ouvert par conséquent et le modèle restera inchangé.\n2. Le formulaire doit être enregistré comme fichier exel normal  sans macros. Ceci se passe automatiquement avec la copie créée par double-clic. Exel indique conséquemment\nlors de l’enregistrement que le projet VB ne peut pas être enregistré; veuillez cliquer sur “OUI”.",{"$f":"IF(L!$B$6=\"Deutsch\",C99,IF(L!$B$6=\"Nederlands\",D99,IF(L!$B$6=\"Français\",E99)))","v":"Dit formulier maakt gebruik van macros. Het formulier moet echter zonder macros worden opgeslagen, om te voorkomen dat het bij het versturen per e-mail in de spamfilter terecht komt. \nLet u hierbij alstublieft op de volgende instructies:\n1. Het oorspronkelijke sjabloon dient altijd ingevuld te worden! Bij een ingevuld en opgeslagen formulier werken een aantal functies niet meer correct. Opent u alstublieft het bestand middels dubbelklikken; hierdoor wordt automatisch een kopie van het bestand geopend zonder het originele sjabloon te wijzigen.\n2. Het formulier moet als normaal Excel-bestand zonder macros worden opgeslagen. Bij het opslaan geeft Excel de melding dat het VB-project niet kan worden opgeslagen; klikt u hier alstublieft op “JA”."}]

{"sheet":"Contactgegevens","index":3,"n_rows":9,"n_cols":7,"rows_kept":9,"cut":false,"hidden":false,"merged":[]}
[{"$f":"IF(L!$B$6=\"Deutsch\",\"Leitstelle\",IF(L!$B$6=\"Nederlands\",\"Meldkamer\",IF(L!$B$6=\"Français\",\"Centrale d'alerte\")))","v":"Meldkamer"},{"$f":"IF(L!$B$6=\"Deutsch\",\"Telefonnummer\",IF(L!$B$6=\"Nederlands\",\"Telefoonnummer\",IF(L!$B$6=\"Français\",\"Numéro de téléphone\")))","v":"Telefoonnummer"},{"$f":"IF(L!$B$6=\"Deutsch\",\"E-Mail\",IF(L!$B$6=\"Nederlands\",\"E-mail\",IF(L!$B$6=\"Français\",\"E-mail\")))","v":"E-mail"},{"$f":"IF(L!$B$6=\"Deutsch\",\"Fax\",IF(L!$B$6=\"Nederlands\",\"Fax\",IF(L!$B$6=\"Français\",\"Fax\")))","v":"Fax"},{"$f":"IF(L!$B$6=\"Deutsch\",\"Adresse\",IF(L!$B$6=\"Nederlands\",\"Adres\",IF(L!$B$6=\"Français\",\"Adres\")))","v":"Adres"},{"$f":"IF(L!$B$6=\"Deutsch\",\"Funk\",IF(L!$B$6=\"Nederlands\",\"Radio\",IF(L!$B$6=\"Français\",\"Radio\")))","v":"Radio"},{"$f":"IF(L!$B$6=\"Deutsch\",\"Bemerkungen\",IF(L!$B$6=\"Nederlands\",\"Opmerkingen\",IF(L!$B$6=\"Français\",\"Remarques\")))","v":"Opmerkingen"}]
[{"$f":"V!F43","v":"CS 112 Luik (B)"},"0032 43 41 99 41","dispatchers@cs112.com","0032 43 41 30 87","Centre de Secours 112 de Liège\nRue du Nord Belge, 6\nB - 4020 Liège",null,{"$f":"V!F89","v":"geheim nummer voor meldkamers in de EMR"}]
[{"$f":"V!F44","v":"CS 112 Limburg (B)"},"0032 11 278531","HCS112limburg@ibz.fgov.be","0032 11 220096","Dienst 100 Hasselt\nWillekensmolenstraat 120\nB - 3500 Hasselt"]
[{"$f":"V!F45","v":"Zone-meldkamer Oost-Limburg (B)"},"0032 89 35 28 88","dispatch@bwol.be","0032 89 65 33 00","Brandweerzone Oost Limburg\nzone-meldkamer\nC-mine 50\nB - 3600 Genk"]
[{"$f":"V!F46","v":"Meldkamer Stad/StädteRegion Aken (D)"},"0049 241 19296","Leitstelle.StaedteRegion.Aachen@mail.aachen.de","0049 241 512527","StädteRegion Aachen\nFeuerwehr Aachen\nStolbergerstrasse 155\nD - 52068 Aachen","4m Band Kanal 470 U/G und 468 U/G"]
[{"$f":"V!F47","v":"Meldkamer Kreis Düren (D)"},"0049 2421 5590","Leitstelle@Kreis-Dueren.de","0049 2421 559155","Kreisleitstelle Düren\nMarienstrasse 29\nD - 52372 Kreuzau","Digital: DN_Anruf2101          (4-m-Band 463 U/G)"]
[{"$f":"V!F48","v":"Meldkamer Kreis Euskirchen (D)"},"0049 2251 5036","Leitstelle@Kreis-Euskirchen.de / Leitstelle@Gefahrenabwehr-Kreis-Euskirchen.de","0049 2251 72303","Kreisleitstelle Euskirchen\nJülicher Ring 32\nD - 53879 Euskirchen","Digital: EU_ANRUF                     (4m Band Kanal 465 U/G)"]
[{"$f":"V!F49","v":"Meldkamer Kreis Heinsberg (D)"}," 0049 243119296","Leitstelle@Kreis-Heinsberg.de"," 0049 2452 13887000","Feuerschutzzentrum Kreis Heinsberg\nLeitstelle F/R\nZur Feuerwache 6\nD - 41812 Erkelenz","4m Band Kanal 467 U/G    TMO-HS_BOS; HS_ANRUF"]
[{"$f":"V!F50","v":"Meldkamer Limburg (NL)"},"0031 88 06 19 223    |   0031 88 06 19 273","meldkamerbrandweer@gmkl.nl","0031 43 32 56 954","Meldkamer Brandweer\nRegionale Alarm Centrale\nMCC\nPrins Bisschopsingel 53\nNL - 6212 AB Maastricht",null,{"$f":"V!F90","v":"speciaal nummer voor meldkamers in de EMR"}]

{"sheet":"prullenbak","index":4,"n_rows":13,"n_cols":7,"rows_kept":13,"cut":false,"hidden":true,"merged":[]}
[]
[null,"Was brennt?",null,"Objektart","Deutsch","Nederlands","Français"]
[null,null,null,"soort object"]
[null,{"$f":"IF(L!$B$6=\"Deutsch\",prullenbak!E4,IF(L!$B$6=\"Nederlands\",prullenbak!F4,IF(L!$B$6=\"Français\",prullenbak!G4)))","v":0},null,"charactère de object","Wohnhaus"]
[null,{"$f":"IF(L!$B$6=\"Deutsch\",prullenbak!E5,IF(L!$B$6=\"Nederlands\",prullenbak!F5,IF(L!$B$6=\"Français\",prullenbak!G5)))","v":0},null,null,"Geschäftsgebäude"]
[null,{"$f":"IF(L!$B$6=\"Deutsch\",prullenbak!E6,IF(L!$B$6=\"Nederlands\",prullenbak!F6,IF(L!$B$6=\"Français\",prullenbak!G6)))","v":0},null,null,"Handwerksbetrieb"]
[null,{"$f":"IF(L!$B$6=\"Deutsch\",prullenbak!E7,IF(L!$B$6=\"Nederlands\",prullenbak!F7,IF(L!$B$6=\"Français\",prullenbak!G7)))","v":0},null,null,"Industrieobjekt"]
[null,{"$f":"IF(L!$B$6=\"Deutsch\",prullenbak!E8,IF(L!$B$6=\"Nederlands\",prullenbak!F8,IF(L!$B$6=\"Français\",prullenbak!G8)))","v":0},null,null,"Krankenhaus"]
[null,{"$f":"IF(L!$B$6=\"Deutsch\",prullenbak!E9,IF(L!$B$6=\"Nederlands\",prullenbak!F9,IF(L!$B$6=\"Français\",prullenbak!G9)))","v":0},null,null,"Lager"]
[null,{"$f":"IF(L!$B$6=\"Deutsch\",prullenbak!E10,IF(L!$B$6=\"Nederlands\",prullenbak!F10,IF(L!$B$6=\"Français\",prullenbak!G10)))","v":0},null,null,"Waldbrand"]
[null,{"$f":"IF(L!$B$6=\"Deutsch\",prullenbak!E11,IF(L!$B$6=\"Nederlands\",prullenbak!F11,IF(L!$B$6=\"Français\",prullenbak!G11)))","v":0},null,null,"Flächenbrand"]
[null,{"$f":"IF(L!$B$6=\"Deutsch\",prullenbak!E12,IF(L!$B$6=\"Nederlands\",prullenbak!F12,IF(L!$B$6=\"Français\",prullenbak!G12)))","v":0},null,null,"Vennbrand"]
[null,"Industrieobjekt"]